Cogmind - Beta 11.1 @@@ ROGUE MODE // 2022.10.03 @ 22:00:11 Player: DuckBoy Result: Destroyed by P-70 Sage with Tesla Rifle Performance ------------- Evolutions (5) 2500 Regions Visited (10) 2000 Robots Destroyed (226) 1130 Value Destroyed (7514) 7514 Prototype IDs (8) 160 Alien Tech Used (0) 0 Bonus (692) 692 TOTAL SCORE: 13996 Bonus ------- High Alert Combat Kills 494 Follower Combat Kills 354 Friendly Fire -156 Cogmind --------- Core Integrity 0/1000 Matter 285/300 Energy 75/160 System Corruption 50% Temperature Cool (0) Movement Core (600) Ox11 Location -5/Factory Parts ------- > --- POWER (2) -------- Light Nuclear Core > --- PROPULSION (4) --- (None) > --- UTILITY (7) ------ Advanced Heat Sink Medium Storage Unit Improved Target Analyzer Core Analyzer Hacking Suite System Shield > --- WEAPON (4) ------- Improved Arc Projector Heavy Laser Wave Gun KE Penetrator > --- INVENTORY (10) --- Combat Airjet Authchip [Device] Authchip [Device] Improved Arc Projector Enhanced Force Lance Peak State ------------ > --- POWER ------------ Reinforced Fission Core Micro Fission Core > --- PROPULSION ------- Combat Airjet Combat Airjet Antigrav System Antigrav System > --- UTILITY ---------- Advanced Heat Sink Medium Storage Unit Improved Target Analyzer Core Analyzer Hacking Suite Hacking Suite System Shield > --- WEAPON ----------- Tesla Rifle Wave Gun KE Penetrator Improved Datajack > --- INVENTORY -------- Gravmag System Antigrav System Improved Heat Sink Nanoactuators Authchip [R/Combat] Authchip [Device] Authchip [Device] Enhanced Force Lance [Rating: 83] Favorites ----------- Power Light Nuclear Core Engine Cooled Ion Engine Power Core Light Nuclear Core Propulsion Light Treads Treads Light Treads Leg Flexi-carbon Leg Hover Unit Combat Airjet Utility Hacking Suite Device Cooling System Storage High-capacity Storage Unit Processor Improved Target Analyzer Hackware Hacking Suite Protection Light Armor Plating Weapon Improved Medium Laser Energy Gun Improved Medium Laser Energy Cannon Plasma Cannon Ballistic Gun Autogun Ballistic Cannon Heavy Flak Cannon Launcher Grenade Launcher Piercing Weapon Enhanced Force Lance Special Melee Weapon Improved Datajack Build | -11 -10 -9 -8 -8 -8 -6 -6 -5 -5 -5 ------- Run | Scr Mat Mat Mat Sto Rec Fac Low Fac Was Fac Slots Evolved 10 | . . 2 2 . . 4 . 2 . . Power 1 | . . . 1 . . . . . . . Propulsion 2 | . . . . . . 1 . 1 . . Utility 5 | . . . 1 . . 3 . 1 . . Weapon 2 | . . 2 . . . . . . . . Parts Attached 224 | 5 5 6 42 4 5 60 8 67 2 20 Power 32 | 1 . . 8 1 . 9 1 9 . 3 Engine 15 | 1 . . 4 1 . 5 . 3 . 1 Core 17 | . . . 4 . . 4 1 6 . 2 Reactor . | . . . . . . . . . . . Propulsion 61 | 1 1 1 9 3 3 20 . 18 . 5 Treads 29 | 1 1 1 9 2 3 12 . . . . Leg 2 | . . . . . . 2 . . . . Wheel . | . . . . . . . . . . . Hover 30 | . . . . 1 . 6 . 18 . 5 Flight . | . . . . . . . . . . . Utility 64 | 1 2 1 13 . 1 15 5 21 . 5 Device 29 | . . 1 6 . 1 4 4 9 . 4 Storage 6 | 1 1 . 2 . . . 1 1 . . Processor 3 | . . . . . . 1 . 2 . . Hackware 17 | . . . 1 . . 6 . 9 . 1 Protection 9 | . 1 . 4 . . 4 . . . . Artifact . | . . . . . . . . . . . Weapon 67 | 2 2 4 12 . 1 16 2 19 2 7 Energy Gun 27 | 1 1 2 6 . 1 3 1 7 . 5 Energy Cannon 19 | . . 1 3 . . 9 . 6 . . Ballistic Gun 16 | 1 . 1 3 . . 3 . 6 . 2 Ballistic Cannon 1 | . . . . . . 1 . . . . Launcher 1 | . 1 . . . . . . . . . Special Weapon . | . . . . . . . . . . . Impact Weapon . | . . . . . . . . . . . Slashing Weapon . | . . . . . . . . . . . Piercing Weapon 1 | . . . . . . . . . 1 . Special Melee Weapon 2 | . . . . . . . 1 . 1 . Unidentified Prototypes 7 | . 1 2 3 1 . . . . . . Corrupted Parts 10 | . . . . . . 1 . 8 . 1 System Corruption 34 | . . . . . . 3 . 27 . 4 Parts Lost 100 | . . . 17 . . 36 . 33 . 14 Power 17 | . . . 5 . . 5 . 6 . 1 Propulsion 30 | . . . 2 . . 13 . 8 . 7 Utility 18 | . . . 4 . . 7 . 5 . 2 Weapon 35 | . . . 6 . . 11 . 14 . 4 Highest Loss Streak 13 | . . . 11 . . 6 . 13 . 5 To Critical Strikes 1 | . . . . . . 1 . . . . Average Slot Usage (%) 92 | . 77 99 94 99 100 87 96 82 92 89 Engine 8 | . 14 11 9 18 18 8 . 2 . 1 Core 4 | . . . 5 . . 1 12 4 11 6 Treads 12 | . 17 22 17 17 18 15 . . . . Hover 5 | . . . . . . 1 13 20 23 20 Device 10 | . . 9 16 18 18 7 6 4 5 3 Storage 6 | . 14 11 4 9 9 6 5 6 5 5 Hackware 10 | . . . 1 . . 18 26 20 17 15 Protection 1 | . 3 1 4 . . 3 . . . . Energy Gun 15 | . 14 33 27 18 18 8 3 5 5 11 Energy Cannon 7 | . . 6 4 18 18 12 . 1 . . Ballistic Gun 4 | . 9 . 2 . . . 16 5 5 6 Naked Turns . | . . . . . . . . . . . Heaviest Build 102 | 13 34 40 77 77 78 102 66 89 46 53 Greatest Support 78 | 20 40 40 40 40 42 78 18 48 46 46 Greatest Overweight (x) 3 | . 1 . 2 1 1 3 3 3 . 3 Average Overweight (x) . | . . . . 1 1 1 2 . . . Largest Inventory Capacity 20 | 8 15 15 20 20 20 20 20 20 10 10 Average Capacity 16 | 6 12 15 10 20 20 20 19 19 10 10 Most Carried 20 | 1 13 15 19 20 20 20 15 20 10 10 Average Carried 14 | . 8 14 9 19 19 18 12 13 9 8 Final Capacity 20 | 8 15 15 20 20 20 20 20 10 10 10 Final Carried 20 | 1 13 15 19 19 20 11 15 10 10 5 Class Distribution -------------------- 34% | Scavenger-Gunner 14% | Scavenger-Tank 11% | Scavenger-Mutant 9% | Hacker-Mutant 7% | Gunner 6% | Tank 4% | Hacker-Gunner 3% | Mutant 3% | Hacker-Tank Dominant Class ---------------- Mutant | -10/Materials Gunner | -9/Materials Scavenger-Tank | -8/Materials Scavenger-Gunner | -8/Storage Scavenger-Gunner | -8/Recycling Scavenger-Gunner | -6/Factory Scavenger-Gunner | -6/Lower Caves Hacker-Mutant | -5/Factory Scavenger-Mutant | -5/Waste Scavenger-Gunner | -5/Factory Resources | -11 -10 -9 -8 -8 -8 -6 -6 -5 -5 -5 ----------- Run | Scr Mat Mat Mat Sto Rec Fac Low Fac Was Fac Matter Collected 4178 | 212 138 91 617 30 107 990 186 1485 . 322 Remotely . | . . . . . . . . . . . Salvage Created 9984 | . 171 645 2831 622 303 2461 . 2209 . 742 Parts 489 | . 24 48 134 37 21 98 . 79 . 48 Haulers Intercepted 13 | . 1 2 5 4 . 1 . . . . Recyclers Shooed 19 | . . . . . 2 3 . 8 . 6 Parts Field Recycled . | . . . . . . . . . . . Retrieved Matter . | . . . . . . . . . . . Parts Self-Destructed . | . . . . . . . . . . . Prevented . | . . . . . . . . . . . Kills | -11 -10 -9 -8 -8 -8 -6 -6 -5 -5 -5 ------- Run | Scr Mat Mat Mat Sto Rec Fac Low Fac Was Fac Combat Hostiles Destroyed 162 | . 6 15 50 6 9 44 . 21 . 11 Melee 3 | . . . . . 2 1 . . . . Guns 105 | . . 11 44 5 3 13 . 18 . 11 Cannons 32 | . . 1 3 1 4 22 . 1 . . AOE 9 | . 6 3 . . . . . . . . Classes Destroyed 16 | . 6 3 5 . 1 1 . . . . Worker 9 | . . 2 2 1 . 2 . 1 . 1 Builder 11 | . 1 . 3 2 1 . . 2 . 2 Hauler 13 | . 1 2 5 4 . 1 . . . . Recycler 13 | . 1 . 2 1 2 . . 6 . 1 Mechanic 1 | . . . 1 . . . . . . . Operator 6 | . 1 2 1 . . 2 . . . . Drone 9 | . . . . . 9 . . . . . Watcher 14 | . 1 2 5 1 . 2 . 2 . 1 Swarmer 37 | . 6 7 10 2 . 7 . . . 5 Grunt 63 | . . 7 27 1 . 17 . 7 . 4 Brawler 2 | . . . 1 . . . . 1 . . Duelist 3 | . . . 1 . . 1 . 1 . . Sentry 22 | . . 1 9 3 . 7 . 1 . 1 Hunter 8 | . . . . . . 4 . 4 . . Programmer 18 | . . . 1 . . 8 . 8 . 1 Heavy 1 | . . . 1 . . . . . . . Best Kill Streak 8 | . 8 7 4 5 3 6 . 4 . 6 Combat Bots Only 6 | . 3 5 4 1 1 6 . 3 . 5 Max Kills in Single Turn 3 | . 3 2 2 2 1 2 . 1 . 1 Gunslinging 1 | . . . 1 . . . . . . . Exploded 2 | . 2 2 . . . . . . . . Melee 1 | . . . . . 1 1 . . . . Uniques/NPCs Destroyed . | . . . . . . . . . . . Combat | -11 -10 -9 -8 -8 -8 -6 -6 -5 -5 -5 -------- Run | Scr Mat Mat Mat Sto Rec Fac Low Fac Was Fac Damage Taken 13321 | . 42 138 2262 185 . 5316 40 3993 . 1345 Core 2304 | . 16 37 355 40 . 836 . 889 . 131 Absorbed by Shields 64 | . . . 64 . . . . . . . Regen/Repaired (Parts) 199 | . . . . . . 176 . 23 . . Core Remaining (%) 62 | 100 93 90 . . 28 . 1 . . . Volleys Fired 530 | . 22 31 140 19 23 131 . 127 . 37 Largest 4 | . 2 4 4 4 4 4 . 4 . 4 Hottest 319 | . 76 236 285 285 298 319 . 235 . 216 Shots Fired 1480 | . 29 98 458 76 96 317 5 318 . 83 Gun 1160 | . 25 81 441 38 47 147 5 293 . 83 Cannon 314 | . . 15 17 38 49 170 . 25 . . Launcher 6 | . 4 2 . . . . . . . . Special . | . . . . . . . . . . . Kinetic 350 | . 7 . 75 . . 42 5 187 . 34 Thermal 1075 | . 18 96 383 76 96 275 . 97 . 34 Explosive 6 | . 4 2 . . . . . . . . Electromagnetic 49 | . . . . . . . . 34 . 15 Robot Hit Streak 21 | . 7 8 21 11 7 20 . 14 . 7 Robot Miss Streak 9 | . 2 3 6 4 8 9 2 5 . 6 Penetration Max 2 | . . . . . . . . 2 . 1 Secondary Targets 10 | . . . 5 . . . . 4 . 1 Max Gunslinging Chain 1 | . . . 1 . . . . 1 . 1 Shots Hit Robots 841 | . 17 43 276 40 24 210 1 188 . 42 Core Hits 405 | . 13 27 119 17 12 121 . 69 . 27 Critical Kills 12 | . . . . 1 1 4 . 5 . 1 Critical Parts Destroyed 8 | . . . . . . . . 6 . 2 Critical Strikes 68 | . 2 8 16 4 2 10 . 19 . 7 Burn 42 | . 2 8 16 3 1 6 . 4 . 2 Meltdown 7 | . . . . 1 1 4 . 1 . . Destroy 13 | . . . . . . . . 10 . 3 Corrupt 6 | . . . . . . . . 4 . 2 Melee Attacks 5 | . . . . . . . 1 2 . 2 Impact . | . . . . . . . . . . . Slashing . | . . . . . . . . . . . Piercing . | . . . . . . . . . . . Sneak Attacks 5 | . . . . . . . 1 2 . 2 Combat Hostiles . | . . . . . . . . . . . Follow-up Attacks . | . . . . . . . . . . . Damage Inflicted 18433 | . 657 920 4747 857 611 5188 . 4311 . 1142 Guns 13431 | . 262 661 4544 511 280 2108 . 3927 . 1138 Cannons 4339 | . . 104 203 346 234 3068 . 384 . . Explosions 550 | . 395 155 . . . . . . . . Melee . | . . . . . . . . . . . Ramming 113 | . . . . . 97 12 . . . 4 Kinetic 4500 | . 44 . 619 . . 608 . 2623 . 606 Thermal 12490 | . 218 765 4128 857 514 4568 . 1145 . 295 Explosive 550 | . 395 155 . . . . . . . . Electromagnetic 780 | . . . . . . . . 543 . 237 Impact . | . . . . . . . . . . . Slashing . | . . . . . . . . . . . Piercing . | . . . . . . . . . . . Highest Corruption 50 | . . . 1 2 3 15 15 34 41 50 Average Corruption 8 | . . . 1 1 2 8 15 16 39 44 Corruption Purged 9 | . . . . . . . . 9 . . Corruption Blocked . | . . . . . . . . . . . Effects 366 | . . . 27 1 35 95 84 81 8 35 Message Errors 88 | . . . 8 . 6 23 25 17 . 9 Matter Fused 76 | . . . 4 . 7 30 16 12 . 7 Heat Flow Errors 43 | . . . 2 . 7 6 16 8 1 3 Energy Discharges 37 | . . . 2 . 7 12 7 7 1 1 Parts Rejected 10 | . . . 1 1 2 2 . 2 . 2 Data Loss (minor) 36 | . . . 4 . . 11 8 11 1 1 Data Loss (major) 16 | . . . 1 . 1 3 4 5 1 1 Misfires 22 | . . . 4 . 4 3 5 6 . . Alerts 9 | . . . 1 . 1 4 3 . . . Misdirections 9 | . . . . . . . . 3 4 2 Weapon Failures 20 | . . . . . . 1 . 10 . 9 Overload Shots . | . . . . . . . . . . . Overflow Damage 129 | . 8 8 . 4 9 83 . 17 . . Projectiles 121 | . . 8 . 4 9 83 . 17 . . Explosions 8 | . 8 . . . . . . . . . Melee . | . . . . . . . . . . . Knockbacks 13 | . . . . . . 13 . . . . Impact . | . . . . . . . . . . . Kinetic 12 | . . . . . . 12 . . . . Secondary 1 | . . . . . . 1 . . . . Self-Inflicted Damage 7 | . 6 . . . . . . . . 1 Shots 1 | . 1 . . . . . . . . . Rammed 16 | . . . . . 10 3 . . . 3 Targets Rammed 18 | . . . . . 11 4 . . . 3 Kicked . | . . . . . . . . . . . Crushed 2 | . . . . . 1 1 . . . . Highest Temperature 484 | . 128 273 379 276 348 457 254 484 210 484 Average Temperature 119 | . 38 92 89 101 106 151 89 133 111 171 Received Heat Transfer 2778 | . . 21 1065 54 . 1029 12 288 . 309 Effects 26 | . . . 1 . 1 10 . 4 1 9 Shutdowns 10 | . . . 1 . 1 3 . 2 . 3 Energy Bleed 3 | . . . . . . 1 . . 1 1 Interference 5 | . . . . . . 2 . 1 . 2 Matter Decay 2 | . . . . . . 1 . 1 . . Short Circuit 3 | . . . . . . 2 . . . 1 Damage (minor) 1 | . . . . . . 1 . . . . Damage (major) 2 | . . . . . . . . . . 2 Siege Activations . | . . . . . . . . . . . Robots Corrupted 1 | . . . . . . . . 1 . . Combat Hostiles 1 | . . . . . . . . 1 . . Parts Fried 8 | . . . . . . . . 6 . 2 Impact Corruptions 1 | . . . . . 1 . . . . . Robots Melted 17 | . . . 5 1 1 8 . 2 . . Combat Hostiles 12 | . . . 3 . . 8 . 1 . . Parts Melted 86 | . . 2 26 11 2 37 . 8 . . Heat Transferred 27764 | . 629 2220 9946 1908 1079 8504 . 2849 . 629 Parts Sabotaged . | . . . . . . . . . . . Parts Stolen . | . . . . . . . . . . . Parts Stripped . | . . . . . . . . . . . Power Chain Reactions . | . . . . . . . . . . . Missiles Intercepted . | . . . . . . . . . . . Alert | -11 -10 -9 -8 -8 -8 -6 -6 -5 -5 -5 ------- Run | Scr Mat Mat Mat Sto Rec Fac Low Fac Was Fac Peak Influence 915 | . 187 344 690 503 254 915 . 524 213 685 Initial 907 | . . . 82 285 195 907 . . 183 149 Average 221 | . 59 176 231 274 78 364 . 138 199 462 Maximum Alert Level 3 | . . 1 2 2 1 3 . 2 1 2 Low Security (%) 59 | 100 100 48 57 24 94 40 . 65 48 10 Level 1 21 | . . 51 22 63 5 21 . 23 51 29 Level 2 15 | . . . 19 12 . 23 . 10 . 60 Level 3 3 | . . . . . . 14 . . . . Level 4 . | . . . . . . . . . . . Level 5 . | . . . . . . . . . . . High Security . | . . . . . . . . . . . Max Security . | . . . . . . . . . . . Sterilizations 1 | . . . 1 . . . . . . . Squads Dispatched 47 | . 1 3 13 1 . 13 . 11 . 5 Investigation 14 | . . 2 4 1 . 2 . 4 . 1 Extermination 11 | . . . . . . 6 . 4 . 1 Reinforcement 11 | . 1 1 3 . . 2 . 2 . 2 Assault 3 | . . . 1 . . . . 1 . 1 Garrison 8 | . . . 5 . . 3 . . . . Intercept . | . . . . . . . . . . . Searches Triggered 2 | . . . . . . 2 . . . . Construction Impeded 2 | . . . . . . . . 1 . 1 Haulers Reinforced 1 | . . . . . . . . . . 1 Active Scanning Responses . | . . . . . . . . . . . Cargo Convoy Interrupts . | . . . . . . . . . . . Stealth | -11 -10 -9 -8 -8 -8 -6 -6 -5 -5 -5 --------- Run | Scr Mat Mat Mat Sto Rec Fac Low Fac Was Fac Distress Signals 12 | . 1 1 1 3 . 2 . 2 . 2 Communications Jammed . | . . . . . . . . . . . Distress Signals . | . . . . . . . . . . . Times Spotted 299 | . 11 24 62 12 50 59 4 43 6 28 Peak Tracking Total 6 | . 4 4 4 3 3 6 4 5 6 6 Tactical Retreats 18 | . . 1 1 2 . 2 4 6 . 2 Traps | -11 -10 -9 -8 -8 -8 -6 -6 -5 -5 -5 ------- Run | Scr Mat Mat Mat Sto Rec Fac Low Fac Was Fac Traps Triggered 8 | . . . 1 1 . 3 . 2 . 1 Indirectly . | . . . . . . . . . . . Trap Hack Attempts . | . . . . . . . . . . . Triggered . | . . . . . . . . . . . Disarmed . | . . . . . . . . . . . Reprogrammed . | . . . . . . . . . . . Reused . | . . . . . . . . . . . Traps Extracted . | . . . . . . . . . . . Installed . | . . . . . . . . . . . Triggered 1 | . . . . . . . 1 . . . Machines | -11 -10 -9 -8 -8 -8 -6 -6 -5 -5 -5 ---------- Run | Scr Mat Mat Mat Sto Rec Fac Low Fac Was Fac Machines Disabled 24 | . 2 1 5 4 1 4 . 3 . 4 Max in Single Turn 1 | . 1 1 1 1 1 1 . 1 . 1 Garrison Access 2 | . . . 1 . . . . . . 1 Machines Sabotaged . | . . . . . . . . . . . Garrisons Compromised . | . . . . . . . . . . . Overloaded Fab Kills . | . . . . . . . . . . . Hacking | -11 -10 -9 -8 -8 -8 -6 -6 -5 -5 -5 --------- Run | Scr Mat Mat Mat Sto Rec Fac Low Fac Was Fac Machines Accessed 57 | . 4 5 10 5 13 12 . 6 . 2 Terminals 38 | . 4 5 7 4 6 9 . 3 . . Fabricators 2 | . . . . . . . . 1 . 1 Repair Stations 1 | . . . . . . 1 . . . . Recycling Units 11 | . . . 1 1 7 1 . 1 . . Scanalyzers 3 | . . . 1 . . 1 . 1 . . Garrison Access 2 | . . . 1 . . . . . . 1 Total Hacks 183 | . 10 11 33 12 43 36 . 31 . 7 Successful 110 | . 2 4 18 9 28 22 . 23 . 4 Failed 72 | . 8 6 15 3 15 14 . 8 . 3 Catastrophic 16 | . 1 2 4 1 2 4 . 1 . 1 Database Lockouts 1 | . . 1 . . . . . . . . Manual 86 | . 8 10 19 5 22 13 . 7 . 2 Terminals 112 | . 10 11 22 9 25 24 . 11 . . Fabricators 18 | . . . . . . . . 16 . 2 Repair Stations 2 | . . . . . . 2 . . . . Recycling Units 29 | . . . 4 3 18 2 . 2 . . Scanalyzers 13 | . . . 3 . . 8 . 2 . . Garrison Access 9 | . . . 4 . . . . . . 5 Terminal Hacks 46 | . 2 4 8 6 12 10 . 4 . . Part Schematic 8 | . . . . 1 5 2 . . . . Robot Schematic 3 | . 1 . . . 1 1 . . . . Robot Analysis 6 | . . 1 3 . 2 . . . . . Open Door 2 | . . . . 2 . . . . . . Machine Index 1 | . . . 1 . . . . . . . Terminal Index 1 | . . . . . . 1 . . . . Garrison Index 1 | . . . . 1 . . . . . . Alert Level 10 | . . 1 . 1 3 2 . 3 . . Unreport Threat 10 | . 1 2 2 1 1 3 . . . . Zone Layout 4 | . . . 2 . . 1 . 1 . . Fabricator Hacks 18 | . . . . . . . . 16 . 2 Load Schematic 9 | . . . . . . . . 8 . 1 Build 9 | . . . . . . . . 8 . 1 Repair Station Hacks 2 | . . . . . . 2 . . . . Scan Component 1 | . . . . . . 1 . . . . Repair 1 | . . . . . . 1 . . . . Recycling Unit Hacks 10 | . . . 1 . 6 2 . 1 . . Report Inventory 7 | . . . . . 6 1 . . . . Retrieve Components 3 | . . . 1 . . 1 . 1 . . Scanalyzer 13 | . . . 3 . . 8 . 2 . . Insert Component 5 | . . . 1 . . 3 . 1 . . Analyze 8 | . . . 2 . . 5 . 1 . . Garrison Access Hacks . | . . . . . . . . . . . Unauthorized Hacks 21 | . . . 6 3 10 . . . . 2 Terminals 2 | . . . 1 . 1 . . . . . Track 2 | . . . 1 . 1 . . . . . Fabricators . | . . . . . . . . . . . Repair Stations . | . . . . . . . . . . . Recycling Units 13 | . . . 1 3 9 . . . . . Reject 1 | . . . . 1 . . . . . . Recyclers 2 | . . . . 1 1 . . . . . Mask 2 | . . . . 1 1 . . . . . Tunnel 8 | . . . 1 . 7 . . . . . Scanalyzers . | . . . . . . . . . . . Garrison Access 6 | . . . 4 . . . . . . 2 Broadcast 1 | . . . . . . . . . . 1 Restock 1 | . . . 1 . . . . . . . Reprogram 1 | . . . 1 . . . . . . . Intercept 1 | . . . 1 . . . . . . . Watchers 2 | . . . 1 . . . . . . 1 Data Cores Recovered 3 | . 1 1 . . . 1 . . . . Used 1 | . . 1 . . . . . . . . Hacking Detections 42 | . 4 4 10 1 7 11 . 4 . 1 Full Trace Events 17 | . 1 2 2 1 6 2 . 2 . 1 Feedback Events 3 | . . . . . 1 1 . . . 1 Corruption 3 | . . . . . 1 1 . . . 1 Feedback Blocked . | . . . . . . . . . . . Robot Schematics Acquired 3 | . 1 . . . 1 1 . . . . Robots Built 11 | . . . . . . . . 9 . 2 Authchips 6 | . . . . . . . . 5 . 1 Time 684 | . . . . . . . . 617 . 67 Total Robot Build Rating 41 | . . . . . . . . 33 . 8 Part Schematics Acquired 12 | . . . 1 1 5 4 . 1 . . Parts Built 5 | . . . . . . . . 5 . . Authchips 3 | . . . . . . . . 3 . . Time 263 | . . . . . . . . 263 . . Total Part Build Rating 22 | . . . . . . . . 22 . . Parts Repaired 1 | . . . . . . 1 . . . . Time 19 | . . . . . . 19 . . . . Parts Recycled . | . . . . . . . . . . . Recycled Matter . | . . . . . . . . . . . Retrieved Matter . | . . . . . . . . . . . Retrieved Components 22 | . . . 10 . . 3 . 9 . . Parts Scanalyzed 5 | . . . 1 . . 3 . 1 . . Part Schematics Acquired 4 | . . . 1 . . 2 . 1 . . Parts Damaged . | . . . . . . . . . . . Bothacking | -11 -10 -9 -8 -8 -8 -6 -6 -5 -5 -5 ------------ Run | Scr Mat Mat Mat Sto Rec Fac Low Fac Was Fac Used RIF Installer . | . . . . . . . . . . . Robots Hacked 5 | . . . . . . . 1 2 . 2 Non-combat 5 | . . . . . . . 1 2 . 2 Combat . | . . . . . . . . . . . Robot Hacks Applied 5 | . . . . . . . 1 2 . 2 parse_system 1 | . . . . . . . 1 . . . no_distress 2 | . . . . . . . . 1 . 1 find_chute 1 | . . . . . . . . 1 . . find_recycling 1 | . . . . . . . . . . 1 Relay Couplers Released 6 | . . . 5 . . . . . . 1 Machine Destruction 3 | . . . 2 . . . . . . 1 Programmers 3 | . . . 3 . . . . . . . Fabnet Peak Effective % . | . . . . . . . . . . . Robots Rewired . | . . . . . . . . . . . Allies Hacked 1 | . . . . . . . . 1 . . Hacks Repelled . | . . . . . . . . . . . Allies | -11 -10 -9 -8 -8 -8 -6 -6 -5 -5 -5 -------- Run | Scr Mat Mat Mat Sto Rec Fac Low Fac Was Fac Total Allies 14 | . . . 1 . . . 1 10 . 2 Largest Group 6 | . . . 1 . . . 1 6 . 2 Highest-Rated Group 222 | . . . 21 . . . 106 222 . 74 Highest-Rated Ally 106 | . . . 21 . . . 106 37 . 37 Total Orders 12 | . . . . . . . . 12 . . STAY 6 | . . . . . . . . 6 . . FOLLOW 1 | . . . . . . . . 1 . . AID 5 | . . . . . . . . 5 . . Ally Attacks 108 | . . . 4 . . . . 97 . 7 Total Damage 2098 | . . . 111 . . . . 1742 . 245 Kills 14 | . . . 1 . . . . 10 . 3 Allies Corrupted . | . . . . . . . . . . . Allies Melted 1 | . . . . . . . . . . 1 Intel | -11 -10 -9 -8 -8 -8 -6 -6 -5 -5 -5 ------- Run | Scr Mat Mat Mat Sto Rec Fac Low Fac Was Fac Robot Analysis Total 6 | . . 1 3 . 2 . . . . . Derelict Logs Recovered . | . . . . . . . . . . . Drone Launches . | . . . . . . . . . . . Drone Recoveries . | . . . . . . . . . . . Exploration | -11 -10 -9 -8 -8 -8 -6 -6 -5 -5 -5 ------------- Run | Scr Mat Mat Mat Sto Rec Fac Low Fac Was Fac Turns Passed 16760 | 55 565 739 4089 366 2422 3579 2147 2296 80 422 Spaces Moved 7022 | 37 259 362 1771 107 940 1237 936 993 123 257 Core 13 | 11 . . 2 . . . . . . . Treads 4534 | 26 259 362 1769 107 940 1071 . . . . Legs . | . . . . . . . . . . . Wheels . | . . . . . . . . . . . Hover 2475 | . . . . . . 166 936 993 123 257 Flight . | . . . . . . . . . . . Fastest Speed 48 | 50 160 160 150 245 237 105 66 58 58 48 Average Speed 193 | 127 186 160 186 245 239 239 226 125 58 91 Slowest Speed 400 | 160 240 160 245 245 245 400 246 246 58 240 Overloaded Moves . | . . . . . . . . . . . Propulsion Burnouts . | . . . . . . . . . . . Robots Hopped . | . . . . . . . . . . . Cave-ins Triggered 1 | . . . . . . 1 . . . . Exploration Rate (%) 48 | 3 61 33 80 25 99 35 78 16 97 9 Regions Visited 10 Branch Regions 3 Pre-discovered Areas 8 | . . . 1 . 7 . . . . . Known Exits Taken . | . . . . . . . . . . . Unknown Exits Taken 8 | 1 1 1 1 1 1 1 1 . . . Scrap Searched 3 | . . . . . . . 3 . . . Spaces Dug 9 | . . . . . . 9 . . . . Terrain Destroyed 120 | . 5 16 8 15 34 28 1 6 . 7 Melee . | . . . . . . . . . . . Projectile 98 | . . . 8 15 34 28 1 5 . 7 AOE 21 | . 5 16 . . . . . . . . Terrain Rammed . | . . . . . . . . . . . Walls Destroyed . | . . . . . . . . . . . Machines Disabled . | . . . . . . . . . . . Actions | -11 -10 -9 -8 -8 -8 -6 -6 -5 -5 -5 --------- Run | Scr Mat Mat Mat Sto Rec Fac Low Fac Was Fac Total 9103 | 43 311 459 2246 164 1040 1592 966 1781 131 370 Wait 1102 | 1 11 44 248 31 37 135 5 549 4 37 Move 7013 | 36 258 361 1770 106 939 1236 935 993 122 257 Hop . | . . . . . . . . . . . Pick Up 116 | 1 13 10 24 2 11 13 12 22 1 7 Fast Attach 101 | 5 3 . 20 . 2 32 4 28 1 6 Attach 76 | . . 3 7 1 . 20 1 33 1 10 Detach 13 | . . . . . . 1 1 9 1 1 Swap 48 | . 2 3 16 3 3 8 3 6 . 4 Drop 74 | . 2 7 21 2 12 9 4 10 1 6 Fire 530 | . 22 31 140 19 23 131 . 127 . 37 Melee 5 | . . . . . . . 1 2 . 2 Ram 5 | . . . . . . . . 2 . 3 Kick . | . . . . . . . . . . . Crush 15 | . . . . . 11 4 . . . . Escape Stasis . | . . . . . . . . . . . Rewire 5 | . . . . . 2 3 . . . . Trap . | . . . . . . . . . . . Miscellaneous . | . . . . . . . . . . . Route ------- -11/Scrapyard -10/Materials (discovered 3 exits: *Mat / [*Min x2]) -9/Materials (discovered 3 exits: *Mat / [*Min x2]) -8/Materials (discovered 4 exits: [*Fac x3] / *Sto) -8/Storage -8/Recycling -6/Factory (discovered 3 exits: *Fac / [*Low x2]) -6/Lower Caves -5/Factory -5/Waste -5/Factory History --------- Turn | Location | Event 9 | -11/Scrapyard | Discovered new exit (range 16) 56 | -11/Scrapyard | Entered Materials 215 | -10/Materials | Discovered new exit (range 14) 302 | -10/Materials | Build established: Mutant 413 | -10/Materials | Discovered new exit (range 5) 535 | -10/Materials | Discovered new exit (range 10) 621 | -10/Materials | Entered another Materials area 621 | -9/Materials | Evolved 2 slots: Weapon x2 751 | -9/Materials | Discovered new exit (range 16) 1026 | -9/Materials | Build established: Gunner 1165 | -9/Materials | Discovered new exit (range 11) 1303 | -9/Materials | Discovered new exit (range 16) 1336 | -9/Materials | Central database locked down 1360 | -9/Materials | Entered another Materials area 1360 | -8/Materials | Evolved 2 slots: Power x1, Utility x1 1733 | -8/Materials | Discovered new exit (range 11) 2342 | -8/Materials | Build established: Tank 2670 | -8/Materials | Garrison activated, responded to threat 3026 | -8/Materials | Garrison activated, responded to threat 3339 | -8/Materials | Discovered new exit (range 3) 3425 | -8/Materials | Build established: Scavenger-Tank 3540 | -8/Materials | Lost 11 parts (2p1n4u4w) 3573 | -8/Materials | Core integrity fell below 50% 4437 | -8/Materials | Discovered new exit (range 15) 4768 | -8/Materials | Discovered new exit (range 16) 4960 | -8/Materials | First assault squad dispatched 5012 | -8/Materials | Sterilization system engaged 5012 | -8/Materials | Non-combat units ordered to evacuate 5112 | -8/Materials | Combat units ordered to evacuate 5312 | -8/Materials | Ambient heat levels rising (+10) 5409 | -8/Materials | Build established: Scavenger-Gunner 5449 | -8/Materials | Entered Storage 5746 | -8/Storage | Used back door to open Recycling access 5746 | -8/Storage | Discovered new exit (range 4) 5815 | -8/Storage | Entered Recycling 5889 | -8/Recycling | Spotter reported a threat 5897 | -8/Recycling | Spotter reported a threat 5898 | -8/Recycling | Spotter reported a threat 5924 | -8/Recycling | Spotter reported a threat 5958 | -8/Recycling | Spotter reported a threat 5968 | -8/Recycling | Spotter reported a threat 5970 | -8/Recycling | Spotter reported a threat 5996 | -8/Recycling | Spotter reported a threat 6011 | -8/Recycling | Spotter reported a threat 6023 | -8/Recycling | Spotter reported a threat 6102 | -8/Recycling | Spotter reported a threat 6153 | -8/Recycling | Spotter reported a threat 6195 | -8/Recycling | Spotter reported a threat 6248 | -8/Recycling | Spotter reported a threat 6283 | -8/Recycling | Spotter reported a threat 6285 | -8/Recycling | Spotter reported a threat 6301 | -8/Recycling | Spotter reported a threat 6327 | -8/Recycling | Spotter reported a threat 6336 | -8/Recycling | Spotter reported a threat 6380 | -8/Recycling | Spotter reported a threat 6389 | -8/Recycling | Spotter reported a threat 6433 | -8/Recycling | Spotter reported a threat 6442 | -8/Recycling | Spotter reported a threat 6463 | -8/Recycling | Spotter reported a threat 6486 | -8/Recycling | Spotter reported a threat 6516 | -8/Recycling | Spotter reported a threat 6638 | -8/Recycling | Spotter reported a threat 6690 | -8/Recycling | Spotter reported a threat 6744 | -8/Recycling | Spotter reported a threat 6792 | -8/Recycling | Spotter reported a threat 6797 | -8/Recycling | Spotter reported a threat 6807 | -8/Recycling | Spotter reported a threat 6807 | -8/Recycling | Spotter reported a threat 6861 | -8/Recycling | Spotter reported a threat 6922 | -8/Recycling | Spotter reported a threat 6982 | -8/Recycling | Spotter reported a threat 7035 | -8/Recycling | Spotter reported a threat 7103 | -8/Recycling | Spotter reported a threat 7103 | -8/Recycling | Spotter reported a threat 7156 | -8/Recycling | Spotter reported a threat 7156 | -8/Recycling | Spotter reported a threat 7287 | -8/Recycling | Spotter reported a threat 7297 | -8/Recycling | Spotter reported a threat 7353 | -8/Recycling | Spotter reported a threat 7368 | -8/Recycling | Discovered new exit (range 15) 7430 | -8/Recycling | Spotter reported a threat 7430 | -8/Recycling | Spotter reported a threat 7472 | -8/Recycling | Spotter reported a threat 7483 | -8/Recycling | Spotter reported a threat 7525 | -8/Recycling | Spotter reported a threat 7609 | -8/Recycling | Spotter reported a threat 7622 | -8/Recycling | Spotter reported a threat 7656 | -8/Recycling | Spotter reported a threat 7680 | -8/Recycling | Spotter reported a threat 7709 | -8/Recycling | Spotter reported a threat 7715 | -8/Recycling | Spotter reported a threat 7728 | -8/Recycling | Spotter reported a threat 7761 | -8/Recycling | Spotter reported a threat 7874 | -8/Recycling | Spotter reported a threat 7989 | -8/Recycling | Spotter reported a threat 8038 | -8/Recycling | Spotter reported a threat 8042 | -8/Recycling | Spotter reported a threat 8046 | -8/Recycling | Spotter reported a threat 8077 | -8/Recycling | Spotter reported a threat 8129 | -8/Recycling | Spotter reported a threat 8182 | -8/Recycling | Spotter reported a threat 8198 | -8/Recycling | Spotter reported a threat 8237 | -8/Recycling | Entered Factory 8237 | -6/Factory | Evolved 4 slots: Propulsion x1, Utility x3 8587 | -6/Factory | Search patrols dispatched 8858 | -6/Factory | Lost 3 parts (2n1u) 8937 | -6/Factory | Search patrols dispatched 8963 | -6/Factory | Discovered new exit (range 16) 9277 | -6/Factory | Lost 3 parts (1n1u1w) 9350 | -6/Factory | Crushed by falling debris 9350 | -6/Factory | System corruption reached 10% 9941 | -6/Factory | Build established: Hacker-Tank 10339 | -6/Factory | Garrison activated, responded to threat 10425 | -6/Factory | Lost 5 parts (1p1n1u2w) 10508 | -6/Factory | Core integrity fell below 50% 10611 | -6/Factory | Discovered new exit (range 4) 10813 | -6/Factory | Build established: Scavenger-Tank 10850 | -6/Factory | Repaired Imp. Light Armor Plating 11041 | -6/Factory | Discovered new exit (range 14) 11345 | -6/Factory | Lost 4 parts (1u3w) 11596 | -6/Factory | Lost 3 parts (2u1w) 11639 | -6/Factory | Core integrity fell below 20% 11721 | -6/Factory | Lost 6 parts (1p4n1w) 11816 | -6/Factory | Entered Lower Caves 12102 | -6/Lower Caves | Build established: Scavenger-Mutant 12910 | -6/Lower Caves | Build established: Scavenger-Gunner 13796 | -6/Lower Caves | 12-ASH showed up to help 13798 | -6/Lower Caves | 12-ASH revealed a hidden path 13963 | -6/Lower Caves | Entered Factory 13963 | -5/Factory | Evolved 2 slots: Propulsion x1, Utility x1 14101 | -5/Factory | Build established: Scavenger-Skirmisher 14361 | -5/Factory | Fabricated Cmb. Airjet (x2) 14449 | -5/Factory | Fabricated M-13 Machinist (x1) 14526 | -5/Factory | Build established: Hacker-Mutant 14584 | -5/Factory | Fabricated Arc Projector? 14728 | -5/Factory | Fabricated P-60 Hacker? 14739 | -5/Factory | Hacker 6a assimilated hostile G-50 Soldier 14889 | -5/Factory | System corruption reached 10% 14925 | -5/Factory | Fabricated P-60 Hacker? 14943 | -5/Factory | Lost 5 parts (1p1n1u2w) 15026 | -5/Factory | Fabricated Plasma Cannon (x2) 15167 | -5/Factory | Fabricated P-60 Hacker (x2) 15309 | -5/Factory | Fabricated P-60 Hacker? 15528 | -5/Factory | Core integrity fell below 50% 15599 | -5/Factory | Lost 13 parts (1p2n2u8w) 15755 | -5/Factory | Lost 4 parts (1p1n1u1w) 16062 | -5/Factory | Build established: Scavenger-Gunner 16063 | -5/Factory | First assault squad dispatched 16145 | -5/Factory | Core integrity fell below 20% 16164 | -5/Factory | System corruption reached 30% 16176 | -5/Factory | Lost 8 parts (2p3n3w) 16259 | -5/Factory | Sucked down chute 16259 | -5/Factory | Entered Waste 16266 | -5/Waste | Spotted C-40 Crusher 16274 | -5/Waste | EMP discharged 16274 | -5/Waste | Found Broken Enh. Force Lance 16293 | -5/Waste | Spotted C-40 Crusher 16295 | -5/Waste | Spotted C-40 Crusher 16299 | -5/Waste | Spotted C-40 Crusher 16299 | -5/Waste | Spotted C-40 Crusher 16328 | -5/Waste | Discovered new exit (range 12) 16329 | -5/Waste | Spotted C-40 Crusher 16339 | -5/Waste | Entered Factory 16612 | -5/Factory | Fabricated P-60 Hacker (x2) 16690 | -5/Factory | Lost 3 parts (1p1n1u) 16761 | -5/Factory | Destroyed by P-70 Sage with Tesla Rifle Last Messages --------------- 16732_ 17RZV&O9MLOA4W 16747_ Nanoactuators destroyed. 16748_ KE Penetrator destroyed. 16749_ Slammed into R-10 Processor. 16749_ Destabilizing: System interference. 16749_ KE Penetrator temporarily disabled. 16750_ K-01 Serf collects debris. 16750_ Imp. Hover Unit destroyed. 16751_ YW|GGRBLLFENL6LB>B6HPMK HZKHCEB5ZA1P 16751_ Slammed into R-10 Processor. 16751_ Destabilizing: Core damaged (-10). 16755_ Slammed into U-05 Engineer. 16757_ ALERT: Construction progress impeded, dispatching reinforcements to local area. 16761_ Gravmag System destroyed. Map ----- +----------------------------------------------------+ | ?????????????????????????????????????????????????? | | ?????????????????????????????????????????????????? | | ?????????????????????????????????????????????????? | | ?????????????????????????????????????????????????? | | ?????????????????????????????????????????????????? | | ?????????????????????????????????????????????????? | | ?????????????????????????????????????????????????? | | ?????????????????????????????????????????????????? | | ?????????????????????????????????????????????????? | | ?????????????????????????????????????????????????? | | ?????????????????????????????????????????????????? | | ????????????????????######??##???????????????????? | | ????????????????????# """""" #???????????????????? | | ????????????????????# """""" #???????????????????? | | ????????????????????# """"" #???????????????????? | | ????????????????????# """"" #???????????????????? | | ????????????????????# #???????????????????? | | ????????????????????# #????????############ | | ????????????????????# ] #????????# | | ????????????????????# ! ! #????????# !![ | | ????????????????????# =%!=!#????????# !! | | ????????????????????#####;####????????# ! [ | | ??????????????????????# #!##?#????????# | | ??????????????????????###u#!#??######## | | ????????????????????????# ## #?# # | | ????????????????????????#@#?##?# """" # | | ????????????????????????#p#????# """" # ! | | ????????????????????????#g#????# """" # | | ????????????????????????#p#????# """" # | | ????????????????????????#g#????# # | | ????????????????????????#g########+##+#######+#### | | ????????????????????????#g | | ????????????????????????# | | ????????????????????????# u | | ????????????????????????# | | ????????????????????????# | | ????????????????????????# | | ??????????????????????? | | ????????????????????? | | ?????????????????????""" "" """" """ """ | | ???????????????????? """" """ """" """ ""F"" | | ?????????????????????"""" """ """" """ "" "" | | ??????????????????????""" "" """" | | ??????????????????????""" "" """" | | ????????????????????????" ? """" | | ???????????????????????? ? | | ???????????????????????? ?? | | ???????????????????????? %[?? ##### | | ???????????????????????? ! ????? ????# | | ???????????????????????? ????? "% ????# | +----------------------------------------------------+ Best States ------------- Heat Dissipation 78 Energy Generation 32 Energy Capacity 510 Matter Stores 300 Matter Capacity 300 Sight Range 16 Robot Scan Range 16 Terrain Scan Density 10 Armor Coverage 300 Melee Speed Boost 30 Evasion (%) 55 Target Analysis 6 Core Analysis 6 Recoil Reduction 3 Offensive Hacking 30 Defensive Hacking 10 Authchip Count 11 Item Schematics ----------------- Med. Armor Plating | -8/Materials | Scanalyzed Plasma Cannon | -8/Storage | Hacked Remote Datajack | -8/Recycling | Hacked Assault Cannon | -8/Recycling | Hacked Lgt. Angular Momentum Engine | -8/Recycling | Hacked Hacking Suite | -8/Recycling | Hacked System Shield | -8/Recycling | Hacked Launcher Loader | -6/Factory | Hacked Adv. Sensor Array | -6/Factory | Scanalyzed Aerolev Unit | -6/Factory | Scanalyzed Arc Projector | -6/Factory | Hacked Cmb. Airjet | -5/Factory | Scanalyzed Robot Schematics ------------------ M-13 Machinist | -10/Materials | Hacked A-02 Transporter | -8/Recycling | Hacked P-60 Hacker | -6/Factory | Hacked Fabricated ------------ Cmb. Airjet | x2 | -5/Factory | Authchip M-13 Machinist | x1 | -5/Factory | Authchip Arc Projector | x1 | -5/Factory | Authchip P-60 Hacker | x2 | -5/Factory | Authchip P-60 Hacker | x2 | -5/Factory | Authchip Plasma Cannon | x2 | -5/Factory | Authchip P-60 Hacker | x2 | -5/Factory | Authchip P-60 Hacker | x2 | -5/Factory | Authchip P-60 Hacker | x2 | -5/Factory | Authchip Alien Tech Used ----------------- None Achievements -------------- None Challenges ------------ None Game ------ Seed CorruptionGammaMultirail Manual? 0 Play Time 02:27:13 Cumulative 204.6 hours Start 2022.10.03 @ 15:57:25 End 2022.10.03 @ 22:00:11 Sessions 1 Manual Loads 0 Difficulty Rogue Special Mode None Game No. 152 Rogue 149 Adventurer 3 Explorer 0 Win Type - Total 2 Types 1/0/1/0/0/0/0/0/0 Lore% 63 Gallery% 65 Achievement% 55 Wizard Run 0 Options --------- ASCII 0 Keyboard 0 Movement Numpad Keybinds 0 Fullscreen 1 Font 18/SmallcapsGlow Map View 76x50 Tactical HUD 1 Map Filters NONE Filters NONE Steam 1 RUN: d25d5af4-2c95-4bff-bc03-b0327b7b1d45